[Event "Turkish Youth Championships 2023"]
[Site "Samsun"]
[Date "2023.05.21"]
[Round "3.1"]
[White "Isik, Alparslan"]
[Black "Hasirci, Ozgur Deniz"]
[Result "1-0"]
[ECO "B99"]
[WhiteElo "2451"]
[BlackElo "1763"]
[Annotator "TA"]
[PlyCount "77"]
[EventDate "2023.05.19"]
[EventType "swiss"]
[EventCountry "TUR"]
[SourceTitle "playchess.com"]
[Source "ChessBase"]
[SourceQuality "1"]
[TimeControl "5400+30"]

{[%evp 22,77,51,55,50,63,60,38,50,19,19,10,0,19,364,363,347,351,329,292,302,202,199,205,126,18,176,160,306,270,453,447,441,437,412,377,771,709,1243,847,29987,29988,29988,29989,29989,29976,29975,29968,29961,29963,5118,1066,29975,29976,29983,29984,29984,29985]} 1. e4 {[%emt 0:04:00]} c5 {[%emt 0:01:00]} 2. Nf3 {[%emt 0:00:30]} d6 {[%emt 0:00:30]} 3. d4 {[%emt 0:00:30]} cxd4 {[%emt 0:00:30]} 4. Nxd4 {[%emt 0:00:30]} Nf6 {[%emt 0:00:30]} 5. Nc3 {[%emt 0:00:30]} a6 {[%emt 0:00:00]} 6. Bg5 {[%emt 0:00:30]} e6 {[%emt 0:00:00]} 7. f4 {[%emt 0:00:30]} Be7 {[%emt 0:00:00]} 8. Qf3 {[%emt 0:00:30]} Qc7 {[%emt 0:00:00]} 9. O-O-O {[%emt 0:00:30]} Nbd7 {[%emt 0:00:30]} 10. g4 {[%emt 0:00:30][%cal Bg2g4,Bg4g5][%mdl 32]} h6 {[%emt 0:00:00]} 11. Bxf6 {[%emt 0:01:30]} Bxf6 {[%emt 0:00:00]} 12. h4 {[%emt 0:00:30]} Nb6 {[%emt 0:00:00] Nowadays more popular than 12...Qb6. B99: Sicilian Najdorf: 6 Bg5 e6 7 f4 Be7 8 Qf3 Qc7 9 0-0-0 Nbd7.} 13. g5 {[%emt 0:00:30]} Bxd4 {[%emt 0:00:00]} 14. Rxd4 {[%emt 0:00:30][%cal Bd1d4,Bd4e4,Be4e1,Be1e5][%mdl 32]} Qc5 {[%emt 0:00:00] White is slightly better.} 15. Qf2 {[%emt 0:00:30][%cal Oe4e5]} hxg5 {[%emt 0:08:00]} 16. e5 {[%emt 0:00:30] Ne4 is the strong threat.} gxf4 {[%emt 0:10:30]} (16... dxe5 $2 17. Rd8+ Kxd8 18. Qxc5 $18) 17. Bd3 {[%emt 0:00:30] [#] Threatens to win with Ne4.} ({Of course not} 17. Ne4 Qxe5 18. Nxd6+ Ke7 $15) 17... O-O $146 {[%emt 0:31:30][%mdl 8192]} (17... d5 $1 $11 {and Black is okay.}) ({Predecessor:} 17... f5 18. exf6 e5 19. fxg7 Rg8 20. Bg6+ Ke7 21. h5 Qxd4 22. Qh4+ Kd7 23. h6 Kc6 {1-0 Hong,A (2504)-Brodsky,D (2496) USA-ch U20 Saint Louis 2022 (1)}) 18. Rg1 $1 $18 {[%emt 0:29:30][%cal Oc3d5]} Qxe5 {[%emt 0:13:30]} (18... dxe5 {is a self mate.} 19. Qg2 g6 20. Bxg6 Re8 21. Bh5+ Kf8 22. Qg8+ Ke7 23. Qxf7#) 19. Re4 {[%emt 0:01:30] Prevents Qe3+.} Qc5 {[%emt 0:00:30] [#]} 20. Qg2 {[%emt 0:00:30][%csl Gg1][%cal Rg2g7]} g6 {[%emt 0:00:30]} 21. Ree1 {[%emt 0:03:30][%cal Od3g6] Threatening mate with Bxg6!} Qh5 {[%emt 0:01:30]} 22. Qf2 {[%emt 0:05:30][%csl LRb6,LRf4]} Nd7 {[%emt 0:09:30] [#]} 23. Qxf4 {[%emt 0:08:30] White has more active pieces. The black rooks are badly placed.} (23. Ne4 $1 $16) 23... Nc5 $2 {[%emt 0:06:09]} (23... e5 $11 {and Black stays safe.} 24. Qc4 Kg7) 24. Qxd6 {[%emt 0:04:30] aiming for Kb1.} Nxd3+ {[%emt 0:07:59]} (24... b6 $16) 25. cxd3 {[%emt 0:00:30]} e5 $2 {[%emt 0:00:56]} (25... Qxh4 $2 26. Rh1 Rd8 27. Qe5 $18) (25... b6 {was called for.} 26. Ne4 Qh6+ 27. Kb1 Bb7) 26. Rxe5 {[%emt 0:00:30]} Qh6+ {[%emt 0:00:30] Black is weak on the dark squares} 27. Kb1 {[%emt 0:02:30] Strongly threatening h5.} Be6 {[%emt 0:04:36]} 28. h5 {[%emt 0:07:30]} Rfd8 $2 {[%emt 0:00:13]} (28... Rad8 29. Qb4 Rde8) 29. Qb4 {[%emt 0:03:30] Hoping for hxg6.} Qh8 {[%emt 0:02:23] [#]} 30. Rxe6 $1 {[%emt 0:02:30][%mdl 576] Deflection} fxe6 {[%emt 0:00:05]} (30... Qxh5 31. Ne4) 31. Rxg6+ {[%emt 0:01:30]} (31. hxg6 $2 Qd4 32. Qxd4 Rxd4 $19) 31... Kf7 {[%emt 0:00:30]} 32. Qxb7+ {[%emt 0:00:30]} Kf8 {[%emt 0:00:00]} 33. Qb4+ {[%emt 0:00:30]} Kf7 {[%emt 0:00:00]} 34. Qf4+ {[%emt 0:03:32]} Ke7 {[%emt 0:00:26]} 35. h6 {[%emt 0:00:04]} Rd7 {[%emt 0:02:51]} 36. Rg7+ {[%emt 0:00:07]} (36. Qb4+ $142 Kf7 37. Qg4) 36... Ke8 {[%emt 0:00:50]} 37. Qe4 {[%emt 0:00:06][%csl LRa8,LRe6] White mates.} Raa7 {[%emt 0:02:07]} 38. Qxe6+ {[%emt 0:00:30]} Kd8 {[%emt 0:00:30]} 39. Rg8+ {[%emt 0:00:00] A cool game by Isik.   Weighted Error Value: White=0.15 (very precise) /Black=0.71} 1-0

[Event "Turkish Youth Championships 2023"]
[Site "Samsun"]
[Date "2023.05.20"]
[Round "3.1"]
[White "Yuksel, Fatih Canberk"]
[Black "Isik, Alparslan"]
[Result "0-1"]
[WhiteElo "1599"]
[BlackElo "2451"]
[Annotator "TA"]
[PlyCount "84"]
[EventDate "2023.05.19"]
[EventType "swiss"]
[EventCountry "TUR"]
[TimeControl "5400+30"]

{[%evp 14,84,34,12,16,19,11,0,30,25,18,15,31,-41,-36,-96,-12,-101,-22,-80,-84,-91,-7,-7,-11,-10,0,0,0,0,0,0,0,-13,-7,0,39,-33,16,0,8,-37,-58,-41,0,-8,-7,-68,-64,-56,-66,-67,-69,-75,-31,-34,0,-74,0,0,0,0,0,-62,0,-92,-62,-69,0,-39,-50,-898,-872]} 1. d4 Nf6 2. c4 g6 3. Nf3 Bg7 4. g3 O-O 5. Bg2 d6 6. Nc3 Nbd7 7. e4 e5 8. d5 Nc5 {E72: King's Indian: 4 e4 d6 5 g3.} 9. Qc2 a5 10. Be3 Ne8 {[#] The position is equal.} 11. O-O-O $146 {[%emt 0:20:00]} ({Predecessor:} 11. Bxc5 dxc5 12. Nd2 f5 13. O-O f4 14. Qd3 Nd6 15. Nb5 Bd7 16. a4 g5 17. Ra3 {0-1 De Araujo,J (2002)-Perdomo,L (2422) Castanhal op 3rd 2014 (3)}) 11... f5 {[%emt 0:21:00]} 12. Bxc5 {[%emt 0:03:30]} dxc5 {[%emt 0:00:30]} 13. Rhe1 {[%emt 0:08:30]} (13. Kb1 $14) 13... Nd6 $15 {[%emt 0:01:30]} 14. Nd2 {[%emt 0:04:30] [#]} (14. Qe2 $1 $15) 14... b6 {[%emt 0:06:30]} (14... Bh6 $1 $17 {Strongly threatening ...fxe4.} 15. Kb1 Bxd2 16. Qxd2 Nxc4) 15. f3 {[%emt 0:06:30] [#]} (15. Kb1 $11 {keeps the balance.}) 15... Bd7 {[%emt 0:06:30]} (15... Bh6 $1 $17 16. Qd3 a4) 16. a4 {[%emt 0:04:30]} (16. Kb1 $11 {remains equal.}) 16... Bh6 $17 {[%emt 0:06:30]} 17. b3 {[%emt 0:01:30]} Qf6 {[%emt 0:05:30]} ({Black should play} 17... fxe4 $17 18. Ncxe4 Nf5) 18. Kb2 {[%emt 0:03:30]} Rae8 {[%emt 0:00:30]} 19. Re2 {[%emt 0:04:30]} Re7 {[%emt 0:03:30]} 20. Rde1 {[%emt 0:00:30]} Rfe8 {[%emt 0:00:00]} 21. Qd3 Bg5 {[%emt 0:01:00]} 22. Rf1 {[%emt 0:07:00]} Qg7 {[%emt 0:00:30]} 23. Ka2 {[%emt 0:00:30]} Qh6 {[%emt 0:00:30]} 24. h4 {[%emt 0:02:30]} Bf6 {[%emt 0:00:30]} 25. Nb5 {[%emt 0:03:30]} ({White should try} 25. Rh1 $14) 25... Bc8 {[%emt 0:12:30]} (25... Bxb5 $15 {deserves consideration.} 26. cxb5 f4) 26. Na7 {[%emt 0:04:30]} Bb7 {[%emt 0:00:30]} 27. Bh3 {[%emt 0:00:00][%cal Re4f5]} f4 {[%emt 0:00:00]} 28. gxf4 {[%emt 0:01:00]} Qxf4 {[%emt 0:06:00]} 29. h5 {[%emt 0:00:30]} gxh5 {[%emt 0:00:30]} 30. Rg2+ {[%emt 0:00:30]} (30. Nb5 $11) 30... Kh8 $15 {[%emt 0:00:30]} 31. Rfg1 {[%emt 0:01:30]} Rg7 {[%emt 0:00:00]} 32. Be6 {[%emt 0:00:30] Prevents Reg8} Ree7 {[%emt 0:01:00][%cal Be8e7,Be7g7,Bg7g4][%mdl 32] Active counter play!} 33. Nb5 {[%emt 0:00:30]} Rxg2 {[%emt 0:01:30]} 34. Rxg2 {[%emt 0:00:30][%csl Ge6][%cal Rg2g8]} Bg5 {[%emt 0:02:30]} 35. Nb1 {[%emt 0:02:30]} (35. Nf1 $1 $11) 35... Ba6 {[%emt 0:01:30]} 36. Nxd6 $1 {[%emt 0:02:30]} cxd6 {[%emt 0:00:30]} 37. Nc3 {[%emt 0:00:00] Ne2 is the strong threat.} Rg7 {[%emt 0:00:00]} 38. Ne2 $1 {[%emt 0:01:00]} Qf8 {[%emt 0:00:00]} ({Better is} 38... Qh4 $1 $15) 39. Ng1 {[%emt 0:03:55]} (39. f4 $11 exf4 40. Rf2) 39... Bf4 {[%emt 0:06:30]} 40. Qf1 {[%emt 0:01:02]} Bg3 {[%emt 0:00:30]} (40... Rxg2+ $15 41. Qxg2 Qg7) 41. Ne2 {[%emt 0:01:19]} h4 {[%emt 0:00:00]} 42. Bg4 $2 {[%emt 0:01:30][%mdl 8192]} (42. Rg1 $15) 42... Rxg4 {[%emt 0:00:00][%mdl 64] Pin.   Weighted Error Value: White=0.39/Black=0.26 (precise)} 0-1

[Event "Turkish Youth Championships 2023"]
[Site "Samsun"]
[Date "2023.05.20"]
[Round "3.2"]
[White "Akbas, Umut Ata"]
[Black "Cicek, Bilal Emre"]
[Result "1-0"]
[WhiteElo "2417"]
[BlackElo "1600"]
[Annotator "TA"]
[PlyCount "79"]
[EventDate "2023.05.19"]
[EventType "swiss"]
[EventCountry "TUR"]
[TimeControl "5400+30"]

{[%evp 11,79,-6,0,-9,-5,-16,-5,0,-10,-18,5,-4,0,0,0,0,0,-73,155,142,150,151,139,61,65,67,54,51,58,60,53,67,75,85,132,131,130,129,206,200,200,180,182,173,202,219,154,165,346,326,359,183,171,122,120,120,112,99,106,0,112,96,114,117,105,98,92,14,1066,1043]} 1. Nf3 d5 2. d4 e6 3. Bf4 Bd6 4. Bg3 Nf6 5. e3 O-O 6. Bd3 c5 7. c3 {D02: 1 d4 d5 2 Nf3 sidelines, including 2...Nf6 3 g3 and 2...Nf6 3 Bf4.} Qc7 8. dxc5 Qxc5 9. Nbd2 {The position is equal.} Nbd7 10. Qc2 e5 {Hoping for ...e4.} 11. e4 dxe4 12. Nxe4 Nxe4 13. Bxe4 Nf6 {[#]} 14. O-O-O $146 (14. Nd2 $11) ({Predecessor:} 14. Rd1 Bg4 15. O-O Bh5 16. Rd2 Rfe8 17. Bxb7 Rab8 18. Be4 Rxb2 19. Bxh7+ Nxh7 20. Qxb2 Bxf3 21. gxf3 {1-0 Moroni,L (2532)-Melia,S (2368) Gibraltar Masters 18th 2020 (10)}) 14... Be6 $2 {[%emt 0:18:30]} (14... Nxe4 $17 {keeps the pressure on.} 15. Qxe4 f6) 15. Ng5 $16 {[%emt 0:23:00][%cal Re4h7]} (15. Bxb7 $6 Rad8 $11) 15... Bxa2 {[%emt 0:04:30]} 16. Bxh7+ {[%emt 0:18:30]} Kh8 {[%emt 0:00:30] [#]} 17. b4 {[%emt 0:08:30]} (17. Qf5 $1 $16 {[%cal Rf5h3] Qh3 would be deadly.} Be6 18. Nxe6 fxe6 19. Qxe6 Kxh7 20. Qxd6 (20. Rxd6 e4 $16)) 17... Qc7 $14 {[%emt 0:03:30][%cal Oa7a5]} 18. Rxd6 {[%emt 0:00:30]} Qxd6 {[%emt 0:03:30]} 19. Qxa2 {[%emt 0:00:30]} Nxh7 {[%emt 0:22:30]} 20. Nxf7+ {[%emt 0:00:30]} Rxf7 {[%emt 0:00:00][%mdl 64] Remove Defender} 21. Qxf7 {[%emt 0:00:00] And now Rd1 would win.} Rc8 {[%emt 0:04:00] [#]} 22. Qb3 {[%emt 0:01:00] Active counter play!} (22. Qxb7 Rxc3+ 23. Kb2 Qd2+ 24. Ka1 Ra3+ 25. Kb1 Rb3+ 26. Ka1 Qb2#) 22... Qc6 {[%emt 0:09:30]} (22... Rd8 $2 23. Rd1 Qh6+ 24. Kb1 Rxd1+ 25. Qxd1 $18) (22... a5 $142) 23. Bxe5 $16 {[%emt 0:08:30]} Qxg2 {[%emt 0:00:30]} 24. Qd1 {[%emt 0:00:30] Black must now prevent Rg1.} Qg5+ {[%emt 0:07:30]} (24... Nf6 $16) 25. f4 $18 {[%emt 0:00:30]} Qe7 {[%emt 0:04:30]} 26. Rg1 {[%emt 0:08:30]} Nf6 {[%emt 0:00:00] Black is weak on the dark squares} 27. Rg3 {[%emt 0:01:30] Threatens to win with Rh3+.} Rd8 {[%emt 0:10:00]} 28. Rh3+ {[%emt 0:01:30]} Kg8 {[%emt 0:00:32]} 29. Qb3+ {[%emt 0:00:30]} Nd5 $2 {[%emt 0:00:06]} (29... Rd5 30. Rg3 (30. Bxf6 Qe1+ 31. Kb2 Qd2+ 32. Ka3 Qc1+ 33. Qb2 Qf1 $16) 30... Kf8) 30. Rd3 {[%emt 0:00:30]} Qe6 {[%emt 0:01:54]} 31. b5 {[%emt 0:05:30]} (31. c4 $142 Rc8 32. c5) 31... Kf7 {[%emt 0:01:32][%cal Od5f4]} 32. Qd1 {[%emt 0:03:30]} ({Better is} 32. Kb2 $18) 32... Rd7 $16 {[%emt 0:02:23]} 33. Qh5+ {[%emt 0:01:30]} Kg8 {[%emt 0:02:05][%cal Od5f4] Strongly threatening ...Nxf4!} 34. Rh3 {[%emt 0:01:30] Intending Qh8+ and mate.} Nf6 {[%emt 0:01:12]} 35. Qh8+ {[%emt 0:01:30]} ({Much worse is} 35. Bxf6 $6 Qe1+ 36. Kc2 Rd2+ 37. Kb3 Qb1+ 38. Kc4 Qa2+ 39. Kb4 Qb2+ 40. Kc4 Qa2+ 41. Kb4 Qb2+ 42. Kc4 Qa2+ $11) 35... Kf7 {[%emt 0:00:02]} 36. Rg3 {[%emt 0:00:30][%csl Gh8][%cal Rg3g7] Dodges Qg4} Ne8 {[%emt 0:00:37]} 37. Qh5+ $40 {[%emt 0:03:11][%mdl 128] White goes for the king.} (37. Bxg7 {gets mated.} Qe1+ 38. Kb2 Rd2+ 39. Ka3 Qa1+ 40. Kb3 Qb1+ 41. Kc4 Nd6+ 42. Kc5 Qxb5#) 37... Kf8 {[%emt 0:00:26]} 38. Bd4 {[%emt 0:02:56]} Rd5 {[%emt 0:01:52]} 39. Qh8+ {[%emt 0:02:59]} (39. Rg5 $16 Rxg5 40. fxg5) 39... Ke7 $2 {[%emt 0:00:13][%mdl 8192]} (39... Kf7 $11) 40. Re3 {[%emt 0:00:58] Weighted Error Value: White=0.21 (precise) /Black=0.24 (precise)} (40. Bxg7 {is a self mate.} Qe1+ 41. Kb2 Rd2+ 42. Ka3 Qa1+ 43. Kb3 Qb1+ 44. Kc4 Nd6+ 45. Kc5 Qxb5#) 1-0

[Event "Turkish Youth Championships 2023"]
[Site "Samsun"]
[Date "2023.05.20"]
[Round "3.4"]
[White "Isilak, Enes"]
[Black "Sahbudak, Baris Cinar"]
[Result "1-0"]
[WhiteElo "2181"]
[BlackElo "1603"]
[Annotator "TA"]
[PlyCount "105"]
[EventDate "2023.05.19"]
[EventType "swiss"]
[EventCountry "TUR"]
[TimeControl "5400+30"]

{[%evp 18,105,23,7,41,38,100,92,79,83,100,106,118,109,108,102,123,119,120,122,130,124,145,92,161,95,214,154,161,156,217,207,193,205,194,183,175,125,232,228,236,243,235,240,258,190,179,179,223,223,219,206,239,187,183,172,179,168,360,344,354,363,345,345,429,429,671,659,800,825,825,816,29970,570,511,0,1183,1118,29979,29980,29985,29986,29986,29987,29987,29979,29979,29972,29980,29981]} 1. d4 Nf6 2. c4 g6 3. g3 Bg7 4. Bg2 d5 5. cxd5 Nxd5 6. Nf3 O-O 7. O-O Nb6 8. Nc3 {[%cal Bb1c3,Bc3a4,Ba4c5,Bc5d3][%mdl 32]} Nc6 9. e3 Re8 10. h3 $1 {[%mdl 4] now scores much better than the old 10.Re1.} Be6 {D76: Fianchetto Grünfeld: Main Line with 7...Nb6.} 11. b3 {[%emt 0:24:00] [#]} Nd5 $146 {[%emt 0:17:00]} (11... a5 $14) ({Predecessor:} 11... a5 12. Bb2 a4 13. Nxa4 Nxa4 14. bxa4 Qd7 15. Kh2 Bc4 16. Rg1 Nb4 17. Nd2 Ba6 18. Ba3 {0-1 Sirosh,I (2380)-Mosadeghpour,M (2515) Olympiad-43 Batumi 2018 (5.12)}) 12. Na4 $16 {[%emt 0:05:30]} Bc8 {[%emt 0:06:30] White is better.} 13. Bb2 {[%emt 0:00:30]} e6 {[%emt 0:00:30]} 14. Rc1 {[%emt 0:01:30]} Nce7 {[%emt 0:05:30]} 15. e4 {[%emt 0:03:30]} Nb6 {[%emt 0:07:30]} 16. Nc5 {[%emt 0:00:00]} Nd7 {[%emt 0:01:30]} 17. Nd3 {[%emt 0:01:00] White is more active.} b6 {[%emt 0:02:30]} 18. Qc2 {[%emt 0:09:30]} Ba6 {[%emt 0:00:30]} 19. Rfd1 {[%emt 0:00:30]} c6 {[%emt 0:01:30]} 20. b4 {[%emt 0:03:30]} ({White should play} 20. Nf4) 20... Rc8 {[%emt 0:01:30]} (20... Bxd3 $16 21. Rxd3 (21. Qxd3 b5 $16) 21... a5) 21. Qb3 {[%emt 0:03:30]} (21. Nf4 $18) 21... Qc7 {[%emt 0:01:30]} (21... Bxd3 $16 22. Rxd3 (22. Qxd3 b5 $16) 22... b5) 22. h4 {[%emt 0:22:30] Nf4 is the strong threat.} Bxd3 {[%emt 0:10:30]} 23. Rxd3 {[%emt 0:00:00][%cal Od4d5]} ({But not} 23. Qxd3 b5 $16) 23... c5 {[%emt 0:02:30]} (23... Qd8 $16 {was called for.} 24. Bh3 Nf8) 24. dxc5 $18 {[%emt 0:00:00]} bxc5 {[%emt 0:00:30]} 25. Bxg7 {[%emt 0:00:30]} Kxg7 {[%emt 0:00:30]} 26. Qb2+ {[%emt 0:00:30]} Kg8 {[%emt 0:01:30]} 27. Qd2 {[%emt 0:00:00]} ({Better is} 27. h5 $18) 27... Ne5 {[%emt 0:01:30]} (27... Nf6 $16 {is a better defense.}) 28. Rxc5 {[%emt 0:00:00]} Nxf3+ {[%emt 0:00:00]} 29. Bxf3 {[%emt 0:00:30]} Qb6 {[%emt 0:01:00] Black is weak on the dark squares} 30. Rd6 {[%emt 0:08:30]} Qb8 {[%emt 0:05:30]} 31. Rxc8 {[%emt 0:06:17]} Rxc8 {[%emt 0:00:30]} 32. a3 {[%emt 0:04:38]} Nc6 {[%emt 0:02:30][%cal Oa7a5]} 33. Be2 {[%emt 0:00:45]} Qc7 {[%emt 0:01:30]} 34. Rd7 {[%emt 0:02:31]} Qb8 {[%emt 0:06:30]} 35. Qd6 {[%emt 0:01:45]} Qxd6 {[%emt 0:03:30]} 36. Rxd6 {[%emt 0:00:04][%cal Bd7d6,Bd6c6,Bc6c7][%mdl 4128] Endgame KRB-KRN} Rc7 {[%emt 0:07:10]} 37. b5 {[%emt 0:00:07]} Ne5 {[%emt 0:02:01] [#]} (37... Na5 {might work better.} 38. e5 h5) 38. f4 {[%emt 0:00:05]} Nd7 {[%emt 0:00:00]} 39. Rc6 {[%emt 0:00:26] Inhibits Nb6.} Rb7 {[%emt 0:01:26]} 40. a4 {[%emt 0:00:13][%cal Ba3a4,Ba4a5,Ba5a6][%mdl 32]} Kf8 {[%emt 0:01:53]} 41. a5 {[%emt 0:01:22]} Ke7 {[%emt 0:00:00]} (41... Nf6 $142 42. b6 axb6 43. axb6 Ke7) 42. a6 {[%emt 0:00:06]} Rb6 {[%emt 0:07:43]} 43. Rc7 {[%emt 0:00:27]} Kd8 {[%emt 0:00:04]} 44. Rxa7 {[%emt 0:00:19]} Kc8 {[%emt 0:02:21]} 45. Ra8+ {[%emt 0:00:30]} (45. Rxd7 $142 Kxd7 46. a7 Ke7 47. a8=Q Rd6 48. Qa3 Kd7 49. Qa7+ Ke8 50. Qc5) 45... Rb8 {[%emt 0:00:05]} 46. Ra7 {[%emt 0:01:25] [#]} (46. Rxb8+ $18 Kxb8 47. e5) 46... f6 $2 {[%emt 0:00:30][%mdl 8192]} (46... Rb6 $11 47. Rxd7 {[%mdl 64] Clearance, Promotion} Kxd7) 47. Bc4 {[%emt 0:01:19]} Nc5 {[%emt 0:00:21]} 48. Rxh7 {[%emt 0:00:08] White mates.} e5 {[%emt 0:00:38]} 49. a7 {[%emt 0:00:30]} Ra8 {[%emt 0:00:30]} 50. Rh8+ {[%emt 0:00:00]} Kb7 {[%emt 0:00:00]} 51. Bd5+ {[%emt 0:00:18]} Kxa7 {[%emt 0:00:24]} 52. Rxa8+ {[%emt 0:00:00]} Kb6 {[%emt 0:00:00]} 53. Rf8 {[%emt 0:00:00] Weighted Error Value: White=0.34/Black=0.64} 1-0